lending/lending_fUSD_20240124
["ID","MTS","AMOUNT","RATE_DAILY","PERIOD"]
[312604856,1706065838481,-19122.29050892,0.000228,2]
[312604857,1706065838490,-10042.84431381,0.00022865,2]
[312604858,1706065838499,-656.78,0.00022877,2]
[312604859,1706065838509,-4547.9010559,0.000229,2]
[312604861,1706065838519,-154.92028371,0.000229,2]
[312604862,1706065838528,-151.16671234,0.000229,2]
[312604863,1706065838538,-189.54074528,0.000229,2]
[312604864,1706065838548,-4985.53416868,0.000229,2]
[312604865,1706065838557,-583.909819,0.000229,2]
[312604866,1706065838567,-1681.45640546,0.000229,2]
[312604867,1706065838576,-170.31791833,0.0002297,2]
[312604868,1706065838586,-157.02,0.00022976,2]
[312604869,1706065838595,-1076530.16056128,0.0002298,2]
[312604870,1706065838607,-155.5292244,0.00022999,2]
[312604871,1706065838617,-3300.30698936,0.00022999,2]
[312604872,1706065838626,-150.0,0.00022999,2]
[312604873,1706065838635,-166.72967318,0.00022999,2]
[312604874,1706065838644,-176372.00225887,0.00023,2]
[312604875,1706065838654,-5000.0,0.00023,2]
[312604876,1706065838664,-2424.04513381,0.00023,2]
[312604877,1706065838673,-879791.69283673,0.00023,2]
[312604893,1706065840818,-256.64876071,0.00023,2]
[312604900,1706065840878,-820.48472415,0.00023,2]
[312604902,1706065840889,-8912.03390444,0.00023,2]
[312604903,1706065840944,-402.8941186,0.00023,2]
[312604904,1706065841004,-2837.89859385,0.00023,2]
[312604941,1706065843961,-879.19720427,0.00022999,2]
[312604942,1706065843973,-2421.10978509,0.00022999,2]
[312604943,1706065843983,-4683.21785497,0.00023,2]
[312604944,1706065844020,-510.38064613,0.00023,2]
[312604945,1706065844083,-34832.90890594,0.00023,2]
[312604946,1706065844145,-1707.12749173,0.00023,2]
[312604947,1706065844211,-2872.07545577,0.00023,2]
[312604948,1706065844222,-2988.67400205,0.00023,2]
[312604949,1706065844234,-35774.82973069,0.00023,2]
[312604950,1706065844268,-353.659,0.00023,2]
[312604951,1706065844280,-2063.75470879,0.00023,2]
[312604952,1706065844330,-342.79309072,0.00023,2]
[312604994,1706065846563,-169.54843254,0.00022998,2]
[312604995,1706065846572,-330.45156746,0.00023,2]
[312605016,1706065846796,-480.00000016,0.00023,2]
[312605049,1706066231723,294.75,0.00019595,2]
[312605050,1706066251278,-155.0,0.00021263,2]
[312605051,1706066251299,-1000.0,0.00021264,2]
[312605052,1706066251319,-158.98648489,0.00021265,2]
[312605053,1706066251339,-1137.90745504,0.00021265,2]
[312605054,1706066251359,-6445.92680117,0.00021266,2]
[312605055,1706066251379,-1814.00128451,0.00021267,2]
[312605056,1706066251400,-210.0,0.00021268,2]
[312605057,1706066251419,-150.0,0.00021396,2]
[312605058,1706066251438,-200.0,0.00021512,2]
[312605059,1706066251458,-3047.53475621,0.0002154,2]
[312605060,1706066251479,-19023.66648007,0.00021541,2]
[312605061,1706066251503,-150.0,0.00021547,2]
[312605062,1706066251523,-150.0,0.00021547,2]
[312605063,1706066251546,-195.75388634,0.00021556,2]
[312605064,1706066251567,-375.22285177,0.00021573,2]
[312605065,1706066481818,363.88149497,0.00018032,2]
[312605066,1706066524865,1896.28715795,0.00018032,2]
[312605067,1706066533071,862.95869378,0.000195,2]
[312605068,1706066539412,527.75797586,0.00018032,2]
[312605069,1706066656309,298.82,0.00019248,2]
[312605070,1706066721661,-2000.0,0.00021138,2]
[312605071,1706066721693,-10566.79859535,0.00021188,2]
[312605072,1706066721713,-7713.20140465,0.00021188,2]
[312605079,1706066741965,500.0,0.00019248,2]
[312605080,1706066764133,579.92993883,0.00019248,2]
[312605094,1706066996892,1573.74,0.00020991,2]
[312605098,1706067031627,-603.35,0.00021008,2]
[312605099,1706067031646,-367.08319897,0.00021008,2]
[312605100,1706067031666,-740.85446158,0.00021008,2]
[312605101,1706067031676,-1000.0,0.00021009,2]
[312605102,1706067031685,-252.08685158,0.0002101,2]
[312605111,1706067032342,-11.64221752,0.0002101,2]
[312605112,1706067032352,-732.9994686,0.0002101,2]
[312605113,1706067032670,-10615.0526379,0.0002101,2]
[312605114,1706067032682,-857.59365821,0.0002101,2]
[312605115,1706067032703,-2715.2519668,0.0002101,2]
[312605116,1706067032719,-689.30241408,0.0002101,2]
[312605117,1706067032730,-298.69050621,0.0002101,2]
[312605118,1706067032744,-3114.77582827,0.0002101,2]
[312605119,1706067032754,-517.19744534,0.00021011,2]
[312605120,1706067032763,-305.41778868,0.00021011,2]
[312605121,1706067032775,-1232.77934096,0.00021011,2]
[312605122,1706067032787,-275.80415487,0.00021011,2]
[312605123,1706067032797,-249.21274586,0.00021012,2]
[312605124,1706067032846,-500.78725414,0.00021012,2]
[312605125,1706067032856,-61.64819124,0.00021013,2]
[312605126,1706067032868,-88.35180876,0.00021013,2]
[312605127,1706067032878,-300.0,0.00021013,2]
[312605128,1706067032888,-712.97985103,0.00021014,2]
[312605131,1706067037564,-2150.16565339,0.00021014,2]
[312605132,1706067037576,-513.2072723,0.00021014,2]
[312605133,1706067037588,-1725.061895,0.00021014,2]
[312605134,1706067037601,-528.39395908,0.00021014,2]
[312605135,1706067037785,-562.80067897,0.00021014,2]
[312605136,1706067037796,-2904.58117493,0.00021014,2]
[312605137,1706067037845,-626.62065293,0.00021014,2]
[312605138,1706067037858,-842.98745772,0.00021014,2]
[312605139,1706067037867,-173.93719408,0.00021018,2]
[312605140,1706067037876,-2832.97,0.00021046,2]
[312605141,1706067037885,-609.49155209,0.00021125,2]
[312605201,1706067040097,-5506.7444118,0.00021125,2]
[312605202,1706067040113,-793.57873986,0.00021125,2]
[312605203,1706067040153,-843.56738472,0.00021125,2]
[312605204,1706067040165,-6285.25396417,0.00021125,2]
[312605205,1706067040177,-6809.0625918,0.00021125,2]
[312605206,1706067040338,-39.81634069,0.00021125,2]
[312605207,1706067040362,-713.6500075,0.00021125,2]
[312605208,1706067040435,-913.72473074,0.00021125,2]
[312605209,1706067040830,-999.88027663,0.00021125,2]
[312605210,1706067040840,-2389.0,0.00021132,2]
[312605211,1706067040851,-499.0,0.00021138,2]
[312605212,1706067040861,-250.0,0.00021149,2]
[312605213,1706067040870,-725.42,0.0002115,2]
[312605214,1706067040879,-155.58,0.00021169,2]
[312605215,1706067040888,-865.31,0.00021195,2]
[312605216,1706067040897,-287.55,0.00021224,2]
[312605217,1706067040906,-274.58,0.00021351,2]
[312605218,1706067040915,-155.58,0.00021445,2]
[312605219,1706067040925,-298.82,0.00021512,2]
[312605220,1706067040934,-267.69614478,0.00021573,2]
[312605221,1706067040943,-457.91077175,0.00021658,2]
[312605223,1706067040952,-155.58,0.00021721,2]
[312605224,1706067040961,-250.0,0.00021918,2]
[312605225,1706067040970,-155.58,0.00021997,2]
[312605226,1706067040979,-176.33,0.00022066,2]
[312605227,1706067040988,-1157.04,0.00022066,2]
[312605228,1706067040998,-178.8203197,0.00022092,2]
[312605229,1706067041007,-155.58,0.00022272,2]
[312605230,1706067041017,-884.62551303,0.000227,3]
[312605231,1706067041026,-7644.6711,0.000227,2]
[312605232,1706067041035,-800.0,0.00022767,2]
[312605233,1706067041044,-159.67628175,0.00022768,2]
[312605234,1706067041053,-156.16850057,0.00022768,2]
[312605235,1706067041065,-443.68927642,0.00022768,2]
[312605236,1706067041076,-7264.16986553,0.00022768,2]
[312605237,1706067041085,-196.17482059,0.00022768,2]
[312605238,1706067041095,-327.25835994,0.00022768,2]
[312605239,1706067041105,-2452.04259321,0.0002277,2]
[312605240,1706067041114,-198.07205853,0.00022798,2]
[312605241,1706067041124,-157.51208331,0.00022798,2]
[312605242,1706067041133,-492.00335182,0.00022798,2]
[312605243,1706067041142,-288.09265534,0.00022798,2]
[312605244,1706067041153,-156.35560874,0.00022798,2]
[312605245,1706067041163,-506.18698223,0.00022798,2]
[312605246,1706067041172,-156.34604065,0.00022798,2]
[312605248,1706067041181,-267.36481734,0.00022798,2]
[312605249,1706067041190,-155.96470031,0.00022798,2]
[312605250,1706067041199,-155.99291287,0.00022798,2]
[312605251,1706067041209,-525.83144076,0.00022798,2]
[312605252,1706067041218,-1161.79593374,0.00022798,2]
[312605253,1706067041227,-193.38147933,0.00022798,2]
[312605254,1706067041236,-1278.28105967,0.00022798,2]
[312605255,1706067041246,-22045.07818223,0.00022799,2]
[312605256,1706067041255,-222.8570429,0.00022799,2]
[312605257,1706067041264,-768.26895365,0.00022799,2]
[312605258,1706067041273,-40807.3064,0.000228,2]
[312605259,1706067041282,-401.496,0.000228,2]
[312605260,1706067041291,-865.31,0.00022839,2]
[312605261,1706067041300,-1000.0,0.0002288,2]
[312605262,1706067041309,-1078.2979,0.000229,2]
[312605263,1706067041319,-14929.5969,0.000229,2]
[312605264,1706067041328,-100000.0,0.000229,2]
[312605265,1706067041337,-1000.0,0.000229,2]
[312605266,1706067041348,-4453.70806175,0.000229,2]
[312605267,1706067041357,-151.28014938,0.000229,2]
[312605268,1706067041367,-173.93719407,0.000229,2]
[312605269,1706067041377,-164.91681992,0.000229,2]
[312605270,1706067041386,-389.27321266,0.000229,2]
[312605271,1706067041396,-393.61969448,0.000229,2]
[312605272,1706067041406,-183.79340836,0.000229,2]
[312605273,1706067041416,-536.19952368,0.00022987,2]
[312605274,1706067041426,-195.04292305,0.0002299,2]
[312605275,1706067041435,-155.92273664,0.00022996,2]
[312605276,1706067041445,-2159.71145823,0.00022996,2]
[312605277,1706067041454,-767.00185016,0.00022996,2]
[312605278,1706067041463,-33765.45615338,0.00022997,2]
[312605279,1706067041473,-155.74610412,0.00022997,2]
[312605280,1706067041482,-420.03008322,0.00022998,2]
[312605281,1706067041491,-233.03070007,0.00022998,2]
[312605282,1706067041500,-3748.46779324,0.00022998,2]
[312605283,1706067041509,-1186.94304291,0.00022998,2]
[312605284,1706067041519,-703.02820025,0.00022998,2]
[312605285,1706067041528,-24106.43771423,0.00022998,2]
[312605286,1706067041541,-372.03993255,0.00022998,2]
[312605287,1706067041579,-626.06449555,0.00022998,2]
[312605298,1706067043036,-6462.86184472,0.00022998,2]
[312605299,1706067043047,-572.09977409,0.00022998,2]
[312605300,1706067043058,-702.38304042,0.00022998,2]
[312605301,1706067043074,-814.20859108,0.00022998,2]
[312605302,1706067043085,-2390.5060322,0.00022998,2]
[312605303,1706067043113,-55738.40094233,0.00022998,2]
[312605304,1706067043122,-379.11026004,0.00022998,2]
[312605305,1706067043131,-163.0124086,0.00022999,2]
[312605306,1706067043140,-204.56258231,0.00022999,2]
[312605307,1706067043149,-3300.30698936,0.00022999,2]
[312605308,1706067043160,-130023.23561106,0.00023,2]
[312605309,1706067043178,-432.0,0.00023,2]
[312605310,1706067043190,-651.01243477,0.00023,2]
[312605311,1706067043201,-1010.20925933,0.00023,2]
[312605312,1706067043212,-288.71974104,0.00023,2]
[312605313,1706067043317,-1210.36080118,0.00023,2]
[312605314,1706067043328,-291.23162982,0.00023,2]
[312605320,1706067045610,-3549.62626472,0.00022798,2]
[312605321,1706067045621,-5529.91657001,0.00022798,2]
[312605322,1706067045669,-865.07617275,0.00022798,2]
[312605323,1706067045680,-500.62895699,0.00022798,2]
[312605324,1706067045734,-725.0649988,0.00022798,2]
[312605325,1706067045745,-279.88866,0.00022798,2]
[312605326,1706067045757,-644.28818466,0.00022798,2]
[312605327,1706067045847,-625.15762086,0.00022798,2]
[312605328,1706067045859,-325.87400702,0.00022798,2]
[312605329,1706067045870,-316.75908617,0.00022798,2]
[312606848,1706067098600,307.57,0.00020584,2]
[312606849,1706067231343,20000.0,0.00021,2]
[312606850,1706067332673,20000.0,0.0002,2]
[312606851,1706067512060,312.37,0.00019237,2]
[312606852,1706067602535,288.60069333,0.00019237,2]
[312606853,1706067629359,150.0,0.00020848,2]
[312606854,1706067634325,250.0,0.0002097,2]
[312606855,1706067697455,232.51765753,0.00020848,2]
[312606856,1706067892745,1134.77,0.00020973,2]
[312606857,1706067903470,150.0,0.00020986,2]
[312606858,1706067964730,210.0,0.00020572,2]
[312606859,1706067967267,200.0,0.00020825,2]
[312606860,1706067989645,281.73382105,0.00021003,2]
[312606861,1706067991581,19023.66648007,0.00021003,2]
[312606862,1706067992608,1814.00128451,0.00021003,2]
[312606863,1706067993846,1000.0,0.00021003,2]
[312606864,1706067999235,525.80820111,0.00021003,2]
[312606868,1706068192124,159.80772946,0.00020919,2]
[312606869,1706068203596,315.92,0.00019157,2]
[312606870,1706068213034,150.0,0.00020945,2]
[312606871,1706068224816,176.01,0.00021,2]
[312606882,1706068231740,-10566.79859535,0.00021016,2]
[312606883,1706068231750,-19023.66648007,0.00021017,2]
[312606884,1706068231759,-1000.0,0.00021017,2]
[312606885,1706068231769,-150.0,0.00021019,2]
[312606886,1706068231779,-186.85,0.00021029,2]
[312606887,1706068231788,-580.34,0.00021036,2]
[312606888,1706068231797,-417.17,0.00021058,2]
[312606889,1706068231807,-849.09,0.00021058,2]
[312606890,1706068231817,-179.95,0.00021151,2]
[312606891,1706068231828,-23880.0,0.00021158,2]
[312606892,1706068231838,-154.38,0.00021159,2]
[312606893,1706068231847,-1207.8,0.00021159,2]
[312606894,1706068231856,-1210.9,0.00021275,2]
[312606895,1706068231866,-159.80772942,0.00021315,2]
[312606896,1706068231875,-419.66,0.00021355,2]
[312606897,1706068231885,-315.92,0.00021421,2]
[312606898,1706068231894,-165.43,0.00021428,2]
[312606899,1706068231903,-154.38,0.00021527,2]
[312606900,1706068231913,-190.5,0.00021544,2]
[312606901,1706068231922,-159.80772942,0.00021711,2]
[312606902,1706068231931,-3127.75244273,0.00021848,2]
[312606903,1706068231940,-154.38,0.00021894,2]
[312606904,1706068231950,-250.0,0.00021918,2]
[312606905,1706068231959,-159.80772942,0.00022108,2]
[312606906,1706068231968,-154.38,0.00022262,2]
[312606907,1706068231977,-159.80772942,0.00022504,2]
[312606908,1706068231986,-1073.13594443,0.00022562,3]
[312606909,1706068231996,-407.79,0.00022562,2]
[312606910,1706068232005,-11195.85777861,0.00022562,2]
[312606918,1706068232804,-627.62684945,0.00022562,2]
[312606919,1706068232817,-650.41397724,0.00022562,2]
[312606920,1706068232830,-492.21325743,0.00022562,2]
[312606921,1706068232874,-591.68657701,0.00022562,2]
[312606922,1706068232886,-385.33323618,0.00022562,2]
[312606923,1706068232898,-555.79337352,0.00022562,2]
[312606924,1706068232929,-5501.06495056,0.00022562,2]
[312606925,1706068232939,-307.47194631,0.00022562,2]
[312606926,1706068232959,-1283.19,0.00022562,2]
[312606927,1706068232970,-1216.87805369,0.00022562,2]
[312606928,1706068232979,-2555.83,0.00022562,2]
[312606929,1706068232988,-1043.09833142,0.00022597,2]
[312606930,1706068232997,-308.43464842,0.00022597,2]
[312606931,1706068233007,-290.39250172,0.00022598,2]
[312606932,1706068233016,-2773.33174483,0.00022599,2]
[312606933,1706068233027,-1169.53619494,0.00022599,2]
[312606934,1706068233063,-3025.38731659,0.00022599,2]
[312606935,1706068233075,-1934.24120179,0.00022599,2]
[312606950,1706068237732,-320.02750419,0.00022599,2]
[312606951,1706068237744,-289.4002629,0.00022599,2]
[312606952,1706068237769,-1024.05920971,0.00022599,2]
[312606953,1706068237831,-664.88675611,0.00022599,2]
[312606954,1706068238003,-2647.20491951,0.00022599,2]
[312607009,1706068240574,-537.75567202,0.00022599,2]
[312607010,1706068240589,-639.14654176,0.00022599,2]
[312607011,1706068240601,-816.22100029,0.00022599,2]
[312607012,1706068240612,-735.43609094,0.00022599,2]
[312607013,1706068240643,-317.0830508,0.00022599,2]
[312607014,1706068241130,-16988.77913362,0.00022599,2]
[312607015,1706068241139,-1073.06153434,0.00022699,2]
[312607016,1706068241193,-542.79103203,0.00022699,2]
[312607023,1706068243470,-5242.2288499,0.00022699,2]
[312607024,1706068243534,-8861.70707,0.00022699,2]
[312607025,1706068243546,-653.03474555,0.00022699,2]
[312607026,1706068243576,-543.33974753,0.00022699,2]
[312607050,1706068245802,-2329.17685,0.00022699,2]
[312607051,1706068245861,-41620.21243931,0.00022699,2]
[312607052,1706068246038,-17745.6,0.00022699,2]
[312607053,1706068246101,-23058.44739516,0.00022699,2]
[312607054,1706068246161,-425.58743,0.00022699,2]
[312607128,1706068652884,284.32,0.00019541,2]
[312607129,1706068856733,150.0,0.00020483,2]
[312607130,1706068924592,187.67188057,0.00020483,2]
[312607132,1706069133609,290.21,0.00019127,2]
[312607133,1706069147237,159.80772942,0.00020913,2]
[312607135,1706069268558,-1000.0,0.00021007,2]
[312607136,1706069268580,-2010.0,0.00021007,2]
[312607137,1706069307311,-6935.0,0.00021007,2]
[312607139,1706069374359,210.0,0.00020156,2]
[312607151,1706069431952,-418.59902367,0.00021012,2]
[312607152,1706069431962,-155.0,0.00021013,2]
[312607153,1706069431971,-1000.0,0.00021013,2]
[312607154,1706069431980,-150.0,0.00021014,2]
[312607155,1706069431990,-300.0,0.00021014,2]
[312607156,1706069431999,-19023.66648007,0.00021015,2]
[312607157,1706069432010,-1921.93,0.00021016,2]
[312607158,1706069432019,-1031.91,0.00021016,2]
[312607159,1706069432028,-23890.0,0.00021016,2]
[312607160,1706069432037,-1603.12850699,0.00021018,2]
[312607161,1706069432046,-464.28,0.00021019,2]
[312607162,1706069432056,-250.0,0.00021056,2]
[312607163,1706069432066,-535.72,0.00021097,2]
[312607164,1706069432075,-179.87,0.00021097,2]
[312607165,1706069432084,-374.6,0.00021291,2]
[312607166,1706069432093,-495.56,0.00021291,2]
[312607167,1706069432103,-150.85,0.00021297,2]
[312607168,1706069432112,-290.21,0.00021391,2]
[312607169,1706069432121,-150.85,0.00021398,2]
[312607170,1706069432131,-14733.11368095,0.00021473,2]
[312607171,1706069432140,-2197.47,0.00021483,2]
[312607172,1706069432150,-150.85,0.00021499,2]
[312607173,1706069432159,-767.58742384,0.00021555,2]
[312607174,1706069432169,-2403.88668082,0.00021559,2]
[312607175,1706069432178,-710.4316209,0.00021562,2]
[312607176,1706069432188,-150.85,0.00021599,2]
[312607177,1706069432197,-262.72,0.00021644,2]
[312607178,1706069432206,-8204.20330532,0.00021689,2]
[312607179,1706069432216,-150.85,0.000217,2]
[312607180,1706069432226,-150.85,0.00021801,2]
[312607181,1706069432235,-150.85,0.00021902,2]
[312607182,1706069432244,-250.0,0.00021918,2]
[312607184,1706069432253,-176.5,0.00022,2]
[312607186,1706069432262,-520.32305343,0.00022,2]
[312607188,1706069432271,-512.83023335,0.00022,2]
[312607190,1706069432280,-150.85,0.00022003,2]
[312607192,1706069432289,-150.85,0.00022104,2]
[312607194,1706069432298,-150.85,0.00022205,2]
[312607196,1706069432307,-150.85,0.00022306,2]
[312607198,1706069432317,-1185.61399622,0.00022355,3]
[312607200,1706069432326,-374.6,0.00022355,2]
[312607202,1706069432335,-150.0,0.00022406,2]
[312607203,1706069432344,-150.85,0.00022406,2]
[312607204,1706069432353,-7683.3372,0.00022499,2]
[312607205,1706069432362,-352.61,0.00022548,2]
[312607206,1706069432371,-1918.19,0.00022562,2]
[312607207,1706069432381,-676.1849,0.0002257,2]
[312607208,1706069432390,-4645.97375057,0.00022597,2]
[312607209,1706069432399,-696.50231477,0.00022598,2]
[312607210,1706069432408,-6684.63626822,0.00022598,2]
[312607211,1706069432418,-1792.1294,0.00022599,2]
[312607212,1706069432427,-69896.02247413,0.00022599,2]
[312607213,1706069432441,-15827.14462587,0.00022599,2]
[312607214,1706069432451,-7083.6889,0.000226,2]
[312607215,1706069432460,-1031.91,0.0002266,2]
[312607216,1706069432469,-23468.99343794,0.0002267,2]
[312607217,1706069432480,-578.53223834,0.0002267,2]
[312607218,1706069432491,-853.71847551,0.0002267,2]
[312607219,1706069432503,-852.59213198,0.0002267,2]
[312607220,1706069432522,-745.35826249,0.0002267,2]
[312607221,1706069432533,-935.31158802,0.0002267,2]
[312607222,1706069432544,-345.85363924,0.0002267,2]
[312607223,1706069432556,-341.85299353,0.0002267,2]
[312607224,1706069432567,-999.87426,0.0002267,2]
[312607225,1706069432581,-301.52504693,0.0002267,2]
[312607226,1706069432602,-455.94522447,0.0002267,2]
[312607227,1706069432614,-10974.99028053,0.0002267,2]
[312607228,1706069432631,-300.96616691,0.0002267,2]
[312607240,1706069438253,-616.01249581,0.0002267,2]
[312607241,1706069438264,-1026.66280624,0.0002267,2]
[312607242,1706069438288,-2027.33882137,0.0002267,2]
[312607243,1706069438300,-417.121379,0.0002267,2]
[312607245,1706069438315,-8895.65150137,0.0002267,2]
[312607247,1706069438327,-1093.66035032,0.0002267,2]
[312607249,1706069438337,-949.9974912,0.00022697,2]
[312607251,1706069438346,-213.39984381,0.00022697,2]
[312607253,1706069438355,-549.5787738,0.00022697,2]
[312607255,1706069438364,-1355.7694311,0.00022697,2]
[312607257,1706069438374,-484.45845653,0.00022697,2]
[312607259,1706069438383,-224.42514441,0.00022697,2]
[312607261,1706069438392,-158.15960294,0.00022697,2]
[312607263,1706069438402,-254.91973684,0.00022697,2]
[312607265,1706069438411,-156.03657496,0.00022697,2]
[312607266,1706069438420,-155.86152259,0.00022697,2]
[312607267,1706069438429,-252.09005108,0.00022697,2]
[312607268,1706069438438,-248.5419635,0.00022697,2]
[312607269,1706069438447,-201.36888801,0.00022697,2]
[312607270,1706069438457,-156.06631072,0.00022697,2]
[312607271,1706069438466,-341.14935207,0.00022697,2]
[312607272,1706069438475,-179.62483485,0.00022697,2]
[312607273,1706069438484,-287.06741501,0.00022697,2]
[312607274,1706069438494,-249.2341106,0.00022697,2]
[312607275,1706069438503,-267.82830705,0.00022697,2]
[312607276,1706069438512,-305.40622402,0.00022697,2]
[312607277,1706069438541,-219.82013328,0.00022697,2]
[312607278,1706069438551,-204.40930152,0.00022697,2]
[312607279,1706069438560,-397.51747079,0.00022697,2]
[312607280,1706069438569,-2220.1589234,0.00022698,2]
[312607281,1706069438578,-1269.1137102,0.00022698,2]
[312607282,1706069438588,-41.90960604,0.00022798,2]
[312607283,1706069438599,-364.54695839,0.00022798,2]
[312607284,1706069438609,-6.37404831,0.00022815,2]
[312607285,1706069438621,-310.51257539,0.00022815,2]
[312607286,1706069438635,-483.1133763,0.00022815,2]
[312607287,1706069438645,-200.0,0.00022816,2]
[312607288,1706069438656,-121.73500488,0.00022816,2]
[312607289,1706069438668,-678.26499512,0.00022816,2]
[312607290,1706069438677,-63.01224443,0.00022816,2]
[312607291,1706069438689,-140.73109257,0.00022816,2]
[312607292,1706069438698,-280.15774233,0.00022858,2]
[312607293,1706069438709,-139.84225767,0.00022858,2]
[312607294,1706069438718,-559.13778799,0.00022895,2]
[312607295,1706069438734,-281.55,0.00022895,2]
[312607296,1706069438746,-885.02841704,0.00022895,2]
[312607297,1706069438755,-398.05835986,0.00022896,2]
[312607298,1706069438764,-331.5094,0.000229,2]
[312607299,1706069438774,-500.0,0.000229,2]
[312607300,1706069438783,-755.4655,0.000229,2]
[312607301,1706069438793,-887.5821,0.000229,2]
[312607302,1706069438802,-5000.99428236,0.000229,2]
[312607303,1706069438812,-337.32917908,0.000229,2]
[312607304,1706069438822,-256.52182992,0.000229,2]
[312607305,1706069438836,-1774.55324252,0.000229,2]
[312607306,1706069438846,-330.21512145,0.000229,2]
[312607307,1706069438855,-727.33583672,0.000229,2]
[312607308,1706069438864,-217.64993258,0.00022975,2]
[312607309,1706069438874,-1423.57567134,0.00022998,2]
[312607310,1706069438883,-265.67371676,0.00022998,2]
[312607311,1706069438893,-14198.30499158,0.00022998,2]
[312607312,1706069438903,-358.04471984,0.00022998,2]
[312607313,1706069438913,-534.96247335,0.00022998,2]
[312607314,1706069438923,-155.62369988,0.00022998,2]
[312607315,1706069438933,-367.61237012,0.00022998,2]
[312607316,1706069438942,-957.58582686,0.00022999,2]
[312607317,1706069438966,-29.97104335,0.00022999,2]
[312607318,1706069438975,-325.50391609,0.00022999,10]
[312607319,1706069438984,-162.56143135,0.00022999,2]
[312607320,1706069438995,-150.0,0.00022999,2]
[312607321,1706069439005,-54164.93902571,0.00023,2]
[312607322,1706069439127,-1840.01178555,0.00023,2]
[312607323,1706069439139,-1265.79024908,0.00023,2]
[312607369,1706069440872,-116040.43420246,0.00023,2]
[312607370,1706069440983,-289.67925303,0.00023,2]
[312607371,1706069441043,-277071.50886634,0.00023,2]
[312607372,1706069441055,-10291.53275194,0.00023,2]
[312607382,1706069442983,-151.49327362,0.000229,2]
[312607383,1706069442993,-2574.92732528,0.00023,2]
[312607384,1706069443005,-4824.07128542,0.00023,2]
[312607385,1706069443018,-338.20311739,0.00023,2]
[312607386,1706069443041,-1293.79166905,0.00023,2]
[312607387,1706069443155,-4950.14600257,0.00023,2]
[312607388,1706069443166,-666.41,0.00023,2]
[312607389,1706069443177,-6855.90067227,0.00023,2]
[312607390,1706069443189,-915.21587112,0.00023,2]
[312607391,1706069443214,-2172.25771036,0.00023,2]
[312607392,1706069443226,-9941.9472232,0.00023,2]
[312607393,1706069443238,-6649.251936,0.00023,2]
[312607394,1706069443273,-2257.72070695,0.00023,2]
[312607395,1706069443285,-633.13267263,0.00023,2]
[312607396,1706069443296,-100101.92715807,0.00023,2]
[312607397,1706069443307,-926.38502705,0.00023,2]
[312607403,1706069445994,-318.62652592,0.00022999,2]
[312607404,1706069446053,-98.40697006,0.00022999,2]
[312607405,1706069446062,-3500.89455317,0.00023,2]
[312607406,1706069446074,-1949.97033606,0.00023,2]
[312607407,1706069446168,-418.28405497,0.00022999,2]
[312607408,1706069446178,-3556.24431537,0.00023,2]
[312607409,1706069446190,-405.81528365,0.00023,2]
[312607410,1706069446233,-10730.24464771,0.00023,2]
[312607411,1706069446244,-3345.71033017,0.00023,2]
[312607412,1706069446256,-509.67127296,0.00023,2]
[312607413,1706069446369,-390.61508953,0.00023,2]
[312607414,1706069446389,-550.66084252,0.00023,2]
[312607415,1706069446404,-759.08272986,0.00023,2]
[312607416,1706069446432,-612.16638275,0.00023,2]
[312607419,1706069464290,211.0,0.00020156,2]
[312607420,1706069472876,162.71976615,0.00020698,2]
[312607421,1706069539145,2687.0,0.00020909,14]
[312607422,1706069539170,13846.7708,0.00020909,14]
[312607424,1706069628236,359.33,0.00019973,2]
[312607426,1706070235258,341.36,0.0001961,2]
[312607465,1706070632134,-155.0,0.00021131,2]
[312607466,1706070632143,-1000.0,0.00021132,2]
[312607467,1706070632153,-419.96973151,0.00021134,2]
[312607468,1706070632167,-1506.46241609,0.00021134,2]
[312607469,1706070632178,-73.5678524,0.00021134,2]
[312607470,1706070632191,-2000.0,0.00021134,2]